{"text_format":"1","workbook":"xlsx","n_sheets":8,"sheets":["Accueil","DGRFM COF","Feuil1","Utilitaire","Validation","détail des projets","indicateurs quantitatifs","Commentaires"],"not_rendered":{"charts":0,"images":14,"macros":1,"external_links":1,"defined_names":1607,"comments":5,"pivot_tables":0},"unopened":[],"bounds":{"document_bytes":16777216,"sheet_cells":100000,"rows_first":2000,"rows_last":500,"rows_between":2000,"halvings":0,"cell_chars":16384,"cell_head_chars":4096},"cells_cut":0,"cells_raw":0,"read":"whole","date_system":"1900"}

{"sheet":"Accueil","index":0,"n_rows":74,"n_cols":13,"rows_kept":74,"cut":false,"hidden":false,"merged":[[58,1,58,2],[58,3,58,11],[18,1,18,3],[24,1,24,13],[16,1,16,13],[17,1,17,13],[19,1,19,13],[20,1,20,13],[57,3,57,11],[54,4,54,13],[25,1,25,13],[73,1,73,2],[73,3,73,4],[54,1,54,2],[56,1,56,2],[56,3,56,11],[57,1,57,2],[55,1,55,2],[67,10,67,11],[72,1,72,3],[72,4,72,8],[72,9,72,11],[65,10,65,11],[62,3,62,4],[62,10,62,11],[66,1,66,2],[65,1,65,2],[66,10,66,11],[66,12,66,13],[62,1,62,2],[66,3,66,4],[66,7,66,8],[65,12,65,13],[65,3,65,4],[65,5,65,6],[65,7,65,8],[66,5,66,6],[72,12,72,13],[67,1,67,2],[67,3,67,4],[67,5,67,6],[67,7,67,8],[67,12,67,13],[1,5,3,10],[4,5,5,10],[55,3,55,11],[12,1,12,7],[52,4,52,13],[51,4,51,13],[53,4,53,13],[51,1,51,2],[52,1,52,2],[53,1,53,2],[15,1,15,13],[21,1,21,13],[22,1,22,13],[23,1,23,13],[14,1,14,13],[26,1,26,13]]}
[]
[null,null,null,null,null,"EXERCICES DE SUIVI DU PACC 2013-2020"]
[]
[]
[null,null,null,null,null,"2018-06-01"]
[]
[]
[]
[]
[null,"Bienvenue dans votre fiche de suivi du Plan d'action 2013-2020 sur les changements climatiques!"]
[]
[]
[null,"Indications spécifiques à l'exercice de juin 2018"]
[null,"Date limite :","2018-06-22"]
[null,"→ Les informations financières doivent être en date du 2018-03-31"]
[null,"→ Veuillez utiliser l'outil de validation sur votre fiche avant de la retourner. Un bouton à cet effet a été ajouté dans les différents onglets."]
[null,"→ Veuillez garder la fiche en format xlsm afin de pouvoir profiter des nouveaux outils conviviaux."]
[null,"→ Besoin d'assistance? Veuillez écrire à l'adresse suivante en spécifiant votre question et vos coordonnées :"]
[null,"direction.executive@cgfv.gouv.qc.ca"]
[null,"→ Avant de débuter l'exercice, veuillez vérifier et compléter au besoin l'information contenue dans la page d'accueil."]
[null,"→ Toute information confidentielle, en vertu d'un contrat ou d'une entente, doit être saisie en bleu."]
[null,"→ La fiche de suivi en format Word doit également être mise à jour. Si aucune modification n'est requise, il est néanmoins nécessaire de mettre à jour les sections Date de mise à jour de la fiche se situant au haut et au bas de la fiche."]
[null,"→ De nouvelles informations sont à saisir à l'onglet Indicateurs quantitatifs, suite aux ajustements apportés à celui-ci."]
[null,"→ Veuillez préciser à la page d'accueil le programme rattaché à l'action, lorsqu'applicable. Le cas échéant, veuillez transmettre le cadre normatif officiel du programme au moment de la retransmission de la fiche de suivi."]
[null,"→ ATTENTION! Copier-coller des informations à partir d'un document Word verrouille les cellules concernées. Pour pouvoir à nouveau écrire et modifier le format de ces cellules, veuillez fermer et ouvrir à nouveau la fiche."]
[null,"→ ATTENTION! Les cellules contenant du texte sont limitées à 250 caractères. Les textes trop longs de votre ancienne fiche sont écrits en rouge puisqu'ils ont été tronqués. Veuillez reformuler ces instances."]
[null,"à ATTENTION! Il est important de remplir la colonne Coût/tonne estimé de l'onglet Détail des projets lorsqu'applicable"]
[]
[]
[]
[]
[]
[]
[]
[]
[]
[]
[]
[]
[]
[]
[]
[]
[]
[]
[]
[]
[]
[]
[null,"Avant de commencer, veuillez vérifier et corriger au besoin les informations indiquées dans l'encadré ci-dessous:"]
[]
[null,"Priorité :",null,15,"Investir dans l'intermodalité et la logistique pour optimiser le transport des marchandises et des personnes"]
[null,"Action :",null,"15.1","Programme visant la réduction des émissions de GES par le développement du transport intermodal (PREGTI)"]
[null,"Sous-action :"]
[null,"Libellé usuel :",null,"15.1","Programme visant la réduction des émissions de GES par le développement du transport intermodal (PREGTI)"]
[null,"Programme :",null,"PREGTI - Programme visant la réduction des émissions de GES par le développement du transport intermodal"]
[null,"Nom du programme :"]
[null,"Statut de l'action :",null,"en cours"]
[null,"Raison du statut de l'action :"]
[]
[]
[]
[null,"Mise à jour de la fiche le :",null,"2018-06-15"]
[]
[]
[null,"Ministère porteur :",null,"MTMDET",null,"Chargé de projet :",null,null,null,null,"Part de financement par le PACC :",null,"100 %"]
[null,"Responsable ministériel :",null,"Évangéline Lévesque",null,null,null,null,null,null,"Date de lancement de l'action :",null,"2014-02-11"]
[null,"Direction responsable :",null,"Transport maritime et ferroviaire",null,"Budget 2013-2020 (M$) :",null,82,null,null,"Date de fin de l'action :",null,"2020-12-31"]
[]
[]
[]
[]
[null,"Personne ressource pour leCGFV :",null,null,null,null,null,null,null,"Tél. :"]
[null,"Fiche validée au CGFV le:",null,"2018-09-21"]

{"sheet":"DGRFM COF","index":1,"n_rows":45,"n_cols":25,"rows_kept":45,"cut":false,"hidden":false,"merged":[[43,1,43,13],[44,1,44,20],[21,1,22,6],[21,7,22,13],[32,1,32,6],[39,1,39,20],[41,1,41,19],[42,1,42,13],[10,21,10,22],[10,24,10,25],[11,1,11,2],[12,5,12,15],[12,16,12,17],[12,18,12,19],[10,1,10,2],[10,3,10,4],[10,5,10,6],[10,15,10,16],[10,18,10,19],[9,1,9,2],[9,3,9,4],[9,5,9,6],[9,15,9,16],[9,18,9,19],[8,1,8,2],[8,3,8,4],[8,16,8,17],[8,18,8,19],[8,21,8,22],[8,24,8,25],[6,9,6,10],[6,11,6,12],[6,16,6,17],[6,18,6,19],[7,1,7,2],[7,3,7,4],[7,5,7,6],[7,16,7,17],[7,18,7,19],[6,7,6,8],[3,1,3,2],[4,1,4,2],[5,1,5,2],[6,1,6,2],[6,5,6,6]]}
[]
[null,null,null,null,null,null,"Bienvenue dans votre fiche de suivi du PACC 2013-2020!"]
[null,null,null,null,null,null,null,null,null,null,null,null,null,null,null,"Juillet 2018"]
[null,"Priorité :",null,15,"Investir dans l'intermodalité et la logistique pour optimiser le transport des marchandises et des personnes"]
[null,"Action:",null,"15.1","15.1 Programme visant la réduction des émissions de GES par le développement du transport intermodal (PREGTI)"]
[null,"Sous-action:",null,"15.1"]
[null,"Numéro de programme",null,"14983","52141","PSA",null,{"$f":"P7","v":0},null,"Projet"]
[null,"Mise à jour de la fiche le:",null,"2018-07-05"]
[null,"Ministère porteur:",null,"MTMDET"]
[null,"Responsable ministériel:",null,"Lise Roberge",null,null,null,null,null,null,null,null,null,null,null,null,null,"Date de lancement:","2014-02-11"]
[null,"Chargé de projet:",null,"Barbara Pouliot",null,"Budget 2013-2020:",null,null,null,null,null,null,null,null,null,82000000,null,"Date de fin:","2020-03-31"]
[null,"Unité Administrative (UA)",null,1810000,"Unité administrative générique"]
[null,"Personne ressource pour la DGRFM:",null,"Barbara Pouliot"]
[]
[]
[]
[]
[]
[]
[]
[]
[null,"SECTION 1 - SOMMAIRE - CONSOLIDATION DES ORGANISMES ET DES FONDS (COF)",null,null,null,null,null,"Combinaison comptable budget",null,null,null,null,null,null,"2013-2014","2014-2015","2015-2016","2016-2017","2017-2018","2018-2019","2019-2020","2020-2021","2021-2022","2022-2023","TOTAL"]
[null,null,null,null,null,null,null,null,null,null,null,null,null,null,"Réel","Réel","Réel","Réel","Réel","Prévu","Prévu","Prévu","Prévu","Prévu"]
[null,"Dépenses"]
[null,"1.1 Rémunération",null,null,null,null,null,{"$f":"IF($D$4=\"Fonds de protection de l'environnement et des milieux hydriques\",784,836)","v":836},{"$f":"IF(B25=\"1.2 Contribution de l'employeur\",\"1810010\",$D$12)","v":1810000},{"$f":"500012","v":500012},{"$f":"IF($B$24=\"Revenu\",0,900)","v":900},{"$f":"IF(OR(B25=\"1.1 Rémunération\",B25=\"1.2 Contribution de l'employeur\",B25=\"1.3 Immobilisations\",B25=\"1.4 Fonctionnement\",B25=\"1.6 Amortissement\"),$D$7,$E$7)","v":"14983"},{"$f":"IF($P$7=\"\",1000000,$P$7)","v":1000000},{"$f":"IF($L$7=\"\",100000000,$L$7)","v":100000000},0,160114,179079.16,180217.82,174449.87,270000,304000,0,0,0,{"$f":"SUM(O25:X25)","v":1267860.8500000001}]
[null,"1.2 Contribution de l'employeur",null,null,null,null,null,{"$f":"IF($D$4=\"Fonds de protection de l'environnement et des milieux hydriques\",784,836)","v":836},{"$f":"IF(B26=\"1.2 Contribution de l'employeur\",\"1810010\",$D$12)","v":"1810010"},501002,{"$f":"IF($B$24=\"Revenu\",0,900)","v":900},{"$f":"IF(OR(B26=\"1.1 Rémunération\",B26=\"1.2 Contribution de l'employeur\",B26=\"1.3 Immobilisations\",B26=\"1.4 Fonctionnement\",B26=\"1.6 Amortissement\"),$D$7,$E$7)","v":"14983"},1000000,{"$f":"IF($L$7=\"\",100000000,$L$7)","v":100000000},{"$f":"O25*R38","v":0},30676,26578.86,23370.82,34210.629999999997,33210,37392,0,0,0,185438.31]
[null,"1.3 Immobilisations",null,null,null,null,null,836,1810000,180710,900,"14983",1000000,100000000,0,0,0,0,0,0,0,0,0,0,0]
[null,"1.4 Fonctionnement",null,null,null,null,null,836,1810000,510012,900,"14983",1000000,100000000,0,2498,240.17,892.17,2714.14,10000,10000,0,0,0,26344.48]
[null,"1.5 Subventions et autres transferts de fonds",null,null,null,null,null,836,1810000,0,900,"52141",1000000,100000000,{"$f":"O30+O31","v":0},{"$f":"P30+P31","v":923587},{"$f":"Q30+Q31","v":5181286.88},476000,1168742,15000000,18000000,18000000,15000000,6770740.4800000004,80520356.359999999]
[null,"1.5.1 - Inclus au périmètre comptable (apparentés)",null,null,null,null,null,836,1810000,"624002a",900,"52141",1000000,100000000,0,0,0,0,0,0,0,0,0,0,0]
[null,"1.5.2 - Hors périmètre comptable (non apparentés)",null,null,null,null,null,836,1810000,"624002na",900,"52141",1000000,100000000,0,923587,5181286.88,476000,1168742,15000000,18000000,18000000,15000000,6770740.4800000004,80520356.359999999]
[null,"TOTAL",null,null,null,null,null,null,null,null,null,null,null,null,{"$f":"O25+O26+O27+O28+O29","v":0},{"$f":"P25+P26+P27+P28+P29","v":1116875},{"$f":"Q25+Q26+Q27+Q28+Q29","v":5387185.0700000003},{"$f":"R25+R26+R27+R28+R29","v":680480.81},{"$f":"S25+S26+S27+S28+S29","v":1380116.6400000001},15313210,{"$f":"U25+U26+U27+U28+U29","v":18351392},18000000,15000000,{"$f":"X25+X26+X27+X28+X29","v":6770740.4800000004},82000000.000000015]
[null,"Réservé au MDDELCC- DGRFM: "]
[null,"1.6 Amortissement",null,null,null,null,null,836,1810000,612200,900,"14983",{"$f":"IF($P$7=\"\",1000000,$P$7)","v":1000000},100000000,null,null,null,0,null,null,null,null,null,null,{"$f":"SUM(P34:X34)","v":0}]
[]
[]
[null,null,null,null,null,null,null,null,null,null,null,null,null,null,null,null,null,"2016-2017","2017-2018","2018-2019","2019-2020","2020-2021","2021-2022"]
[null,"Taux annuel de contribution de l'employeur (%)",null,null,null,null,null,null,null,null,null,null,null,null,null,null,null,0.123,0.123,0.1212]
[]
[null," Instructions spécifiques à l'exercice de juillet 2018 "]
[null,"Date limite:"," 2018-07-20 "]
[null,"- Les prévisions doivent tenir compte de votre capacité réelle de mise en œuvre des actions"]
[null,"- Veuillez réviser et compléter les cases jaunes"]
[null,"- Gardez la fiche en format excel"]
[null,"- Pour toutes questions en cours d'exercice, veuillez écrire un courriel à l'adresse suivante: pierre-michel.brassard-lapointe@mddelcc.gouv.qc.ca spécifiant la question et le numéro de téléphone auquel nous pouvons vous rejoindre pour y répondre"]

{"sheet":"Feuil1","index":2,"n_rows":0,"n_cols":0,"rows_kept":0,"cut":false,"hidden":true,"merged":[]}

{"sheet":"Utilitaire","index":3,"n_rows":49,"n_cols":11,"rows_kept":49,"cut":false,"hidden":true,"merged":[[15,1,15,5],[15,8,15,9]]}
[]
[]
[null,"Mot de passe:","!1320PACC","Fiche verrouillée:","Oui - diffusion en ligne"]
[null,"Fiche validée:","Oui"]
[null,"GES attendu:","Oui"]
[null,"Feuille accueil complètement remplie:","Non","Exercice de suivi:","2017-12-01"]
[null,"Statut action:",{"$f":"Accueil!D58","v":"en cours"}]
[null,"Feuille Utilitaire visible:","Non","Titre des Onglets:","PLAN D'ACTION 2013-2020 SUR LES CHANGEMENTS CLIMATIQUES"]
[null,"Dernière ligne de la zone de défilement de l'onglet détail des projets:",82]
[null,"nombre d'indicateurs approuvés:","11"]
[null,"Secteur:","PACC 2013-2020"]
[null,"Numéro de séquence de l'action:",15.01]
[]
[]
[null,"Listes Déroulantes"]
[null,"détail des projets",null,null,null,null,"indicateurs quantitatifs","DRFM COF","Accueil"]
[null,"Région Administrative","Statut","Classification","Type d'émissions","Info GES","Type d'indicateur","Exercice de suivi","Statut de l'action","Programmes","Fiche verrouillée"]
[null,"99-toutes les régions","AC-Actif","SU-Subvention","QC-Québec","Oui","minimum à atteindre","2013-2014-1","non démarrée","Non applicable","Oui - partenaire"]
[null,"01-Bas-Saint-Laurent","TE-Terminé","CF-Contrat fonctionnement","HQ-Hors-Québec","Non","maximum à ne pas dépasser","2013-2014-2","en élaboration","Autre programme","Oui - diffusion en ligne"]
[null,"02-Saguenay- Lac-Saint-Jean","AT-En attente","CI-Contrat immobilisation","ND-Non distingué",null,"binaire","2014-2015-1","en cours","Action-Climat Québec ","Non - BGFV"]
[null,"03-Capitale-Nationale","SU-Suspendu","CP-Contrat service professionnel",null,null,null,"2014-2015-2","terminée","Biomasse forestière résiduelle"]
[null,"04-Mauricie ","AN-Annulé","CT-Contrat service technique",null,null,null,"2015-2016-1","en suspens","Branché au travail"]
[null,"05-Estrie","AB-Abandonné","PI-Projet à l'interne",null,null,null,"2015-2016-2","abandonnée","Climat-municipalités"]
[null,"06-Montréal",null,"AU-Autre",null,null,null,"2016-2017-1",null,"ClimatSol-Plus"]
[null,"07-Outaouais",null,null,null,null,null,"2016-2017-2",null,"Écocamionnage"]
[null,"08-Abitibi-Témiscamingue",null,null,null,null,null,"2017-2018-1",null,"Écoperformance"]
[null,"09-Côte-Nord",null,null,null,null,null,"2017-2018-2",null,"PADTC - Programme d'aide au développement du transport collectif"]
[null,"10-Nord-du-Québec",null,null,null,null,null,"2018-2019-1",null,"PAGASTC - Programme d’aide gouvernementale à l’amélioration des services de transport en commun"]
[null,"11-Gaspésie-Iles-de-la-Madeleine",null,null,null,null,null,"2018-2019-2","Part de financement par le PACC","PAGTCP - Programme d’aide gouvernementale au transport collectif des personnes"]
[null,"12-Chaudières-Appalaches",null,null,null,null,null,"2019-2020-1","Variable","PAGTCR - Programme d'aide gouvernementale au transport collectif régional"]
[null,"13-Laval",null,null,null,null,null,"2019-2020-2",{"$f":"10 & \" %\"","v":"10 %"},"PETMAF - Programme d'aide à l'amélioration de l'efficacité du transport maritime, aérien et ferroviaire en matière de réduction des émissions de GES"]
[null,"14-Lanaudière",null,null,null,null,null,"2020-2021-1",{"$f":"20 & \" %\"","v":"20 %"},"PREGTI - Programme visant la réduction des émissions de GES par le développement du transport intermodal"]
[null,"15-Laurentides",null,null,null,null,null,"2020-2021-2",{"$f":"30 & \" %\"","v":"30 %"},"Prime-Vert"]
[null,"16-Montérégie",null,null,null,null,null,"2021-2022-1",{"$f":"40 & \" %\"","v":"40 %"},"Programme d’aide gouvernementale transitoire en matière de transport routier des personnes"]
[null,"17-Centre-du-Québec",null,null,null,null,null,"2021-2022-2",{"$f":"50 & \" %\"","v":"50 %"},"Programme de compostage pour petites municipalités"]
[null,null,null,null,null,null,null,"2022-2023-1",{"$f":"60 & \" %\"","v":"60 %"},"Programme de coopération climatique internationale"]
[null,null,null,null,null,null,null,"2022-2023-2",{"$f":"70 & \" %\"","v":"70 %"},"Programme de soutien à des projets de démonstration en transport collectif électrique"]
[null,null,null,null,null,null,null,"2023-2024-1",{"$f":"80 & \" %\"","v":"80 %"},"Programme de soutien à l'intégration de l'adaptation aux changements climatiques à la planification municipale"]
[null,null,null,null,null,null,null,"2023-2024-2",{"$f":"90 & \" %\"","v":"90 %"},"Programme de soutien aux municipalités dans la mise en place d'infrastructures de gestion durable des eaux de pluie à la source"]
[null,null,null,null,null,null,null,null,{"$f":"100 & \" %\"","v":"100 %"},"Programme de subventions à l’adaptation des taxis et des autocars interurbains pour le transport des personnes se déplaçant en fauteuil roulant"]
[null,null,null,null,null,null,null,null,null,"Programme de vitrine technologique pour les bâtiments et les solutions innovantes en bois"]
[null,null,null,null,null,null,null,null,null,"Projets de démonstration de taxis électriques"]
[null,null,null,null,null,null,null,null,null,"Promotion de l'électrification des transports"]
[null,null,null,null,null,null,null,null,null,"PTMOBC - Programme de traitement des matières organiques par biométhanisation et compostage"]
[null,null,null,null,null,null,null,null,null,"Rénoclimat-volet Chauffez vert"]
[null,null,null,null,null,null,null,null,null,"Roulez électrique"]
[null,null,null,null,null,null,null,null,null,"Soutien aux essais de fertilisation"]
[null,null,null,null,null,null,null,null,null,"Technoclimat"]
[null,null,null,null,null,null,null,null,null,"Véloce II"]

{"sheet":"Validation","index":4,"n_rows":38,"n_cols":6,"rows_kept":38,"cut":false,"hidden":true,"merged":[[2,1,2,3],[4,1,4,3],[3,2,3,5],[5,1,5,5],[1,1,1,4],[4,4,4,5]]}
[]
[null,{"$f":"Utilitaire!E8","v":"PLAN D'ACTION 2013-2020 SUR LES CHANGEMENTS CLIMATIQUES"}]
[null,{"$f":"\"Action \" & Accueil!D58","v":"Action en cours"}]
[null,{"$f":"Accueil!D55","v":"15.1"},{"$f":"Accueil!E55","v":"Programme visant la réduction des émissions de GES par le développement du transport intermodal (PREGTI)"}]
[null,"Ministère porteur:",null,null,{"$f":"Accueil!$D$66","v":"MTMDET"}]
[null,"Rapport de validation de la fiche de suivi"]
[]
[]
["Code de couleur","Feuille concernée","no ligne","Description de la problématique","No d'erreur","Commentaires"]
[null,"détail des projets",25,"Le total des dépenses réelles du projet de la ligne 25 ne correspond pas.",8]
[null,"détail des projets",26,"Des informations caractéristiques du projet de la ligne 26 sont manquantes: RÉGION ADMINISTRATIVE, STATUT, CLASSIFICATION DU PROJET, MONTANT ENGAGÉ ($), DATE DE L'ENGAGEMENT, DATE DU DERNIER VERSEMENT, Budget total du projet ($).",5]
[null,"détail des projets",28,"Des informations caractéristiques du projet de la ligne 28 sont manquantes: RÉGION ADMINISTRATIVE, STATUT, CLASSIFICATION DU PROJET, MONTANT ENGAGÉ ($), DATE DE L'ENGAGEMENT, DATE DU DERNIER VERSEMENT, Budget total du projet ($).",5]
[null,"détail des projets",29,"Des informations caractéristiques du projet de la ligne 29 sont manquantes: DATE DU DERNIER VERSEMENT.",5]
[null,"détail des projets",29,"La dépense du projet de la ligne 29 pour la période 2016-2017 est négative.",6]
[null,"détail des projets",31,"Des informations caractéristiques du projet de la ligne 31 sont manquantes: RÉGION ADMINISTRATIVE, STATUT, CLASSIFICATION DU PROJET, MONTANT ENGAGÉ ($), DATE DE L'ENGAGEMENT, DATE DU DERNIER VERSEMENT, Budget total du projet ($).",5]
[null,"détail des projets",32,"La dépense du projet de la ligne 32 pour la période 2018-2019 est négative.",6]
[null,"détail des projets",33,"Des informations caractéristiques du projet de la ligne 33 sont manquantes: RÉGION ADMINISTRATIVE, STATUT, CLASSIFICATION DU PROJET, MONTANT ENGAGÉ ($), DATE DE L'ENGAGEMENT, DATE DU DERNIER VERSEMENT, Budget total du projet ($).",5]
[null,"détail des projets",40,"La dépense du projet de la ligne 40 pour la période 2018-2019 est négative.",6]
[null,"détail des projets",41,"Des informations caractéristiques du projet de la ligne 41 sont manquantes: RÉGION ADMINISTRATIVE, STATUT, CLASSIFICATION DU PROJET, MONTANT ENGAGÉ ($), DATE DE L'ENGAGEMENT, DATE DU DERNIER VERSEMENT, Budget total du projet ($).",5]
[null,"détail des projets",42,"La dépense du projet de la ligne 42 pour la période 2015-2016 est négative.",6]
[null,"détail des projets",43,"Des informations caractéristiques du projet de la ligne 43 sont manquantes: RÉGION ADMINISTRATIVE, STATUT, CLASSIFICATION DU PROJET, MONTANT ENGAGÉ ($), DATE DE L'ENGAGEMENT, DATE DU DERNIER VERSEMENT, Budget total du projet ($).",5]
[null,"détail des projets",44,"La dépense du projet de la ligne 44 pour la période 2015-2016 est négative.",6]
[null,"détail des projets",45,"Le total des dépenses réelles du projet de la ligne 45 ne correspond pas.",8]
[null,"détail des projets",46,"Des informations caractéristiques du projet de la ligne 46 sont manquantes: RÉGION ADMINISTRATIVE, STATUT, CLASSIFICATION DU PROJET, MONTANT ENGAGÉ ($), DATE DE L'ENGAGEMENT, DATE DU DERNIER VERSEMENT, Budget total du projet ($).",5]
[null,"détail des projets",47,"Le total des dépenses réelles du projet de la ligne 47 ne correspond pas.",8]
[null,"détail des projets",48,"Le total des dépenses réelles du projet de la ligne 48 ne correspond pas.",8]
[null,"détail des projets",49,"Des informations caractéristiques du projet de la ligne 49 sont manquantes: RÉGION ADMINISTRATIVE, STATUT, CLASSIFICATION DU PROJET, MONTANT ENGAGÉ ($), DATE DE L'ENGAGEMENT, DATE DU DERNIER VERSEMENT, Budget total du projet ($).",5]
[null,"détail des projets",50,"Le total des dépenses réelles du projet de la ligne 50 ne correspond pas.",8]
[null,"détail des projets",51,"Des informations caractéristiques du projet de la ligne 51 sont manquantes: RÉGION ADMINISTRATIVE, STATUT, CLASSIFICATION DU PROJET, MONTANT ENGAGÉ ($), DATE DE L'ENGAGEMENT, DATE DU DERNIER VERSEMENT, Budget total du projet ($).",5]
[null,"détail des projets",52,"Le total des dépenses réelles du projet de la ligne 52 ne correspond pas.",8]
[null,"détail des projets",53,"Le total des dépenses réelles du projet de la ligne 53 ne correspond pas.",8]
[null,"détail des projets",54,"Des informations caractéristiques du projet de la ligne 54 sont manquantes: RÉGION ADMINISTRATIVE, STATUT, CLASSIFICATION DU PROJET, MONTANT ENGAGÉ ($), DATE DE L'ENGAGEMENT, DATE DU DERNIER VERSEMENT, Budget total du projet ($).",5]
[null,"indicateurs quantitatifs",33,"La valeur de l'indicateur de la ligne 33 n'a pas été rapportée.",19]
[null,"indicateurs quantitatifs",33,"Le résultat à comparer avec la cible de la ligne 33 n'a pas été rapporté.",100]
[null,"indicateurs quantitatifs",34,"La valeur de l'indicateur de la ligne 34 n'a pas été rapportée.",19]
[null,"indicateurs quantitatifs",34,"Le résultat à comparer avec la cible de la ligne 34 n'a pas été rapporté.",100]
[null,"indicateurs quantitatifs",35,"La valeur de l'indicateur de la ligne 35 n'a pas été rapportée.",19]
[null,"indicateurs quantitatifs",35,"Le résultat à comparer avec la cible de la ligne 35 n'a pas été rapporté.",100]

{"sheet":"détail des projets","index":5,"n_rows":71,"n_cols":58,"rows_kept":71,"cut":false,"hidden":false,"merged":[[22,57,23,57],[13,9,13,10],[15,9,15,10],[16,9,16,10],[22,27,23,27],[22,28,23,28],[22,30,22,31],[22,25,23,25],[22,32,22,33],[22,10,23,10],[14,9,14,10],[22,56,23,56],[21,13,21,23],[1,1,1,3],[7,7,7,8],[6,9,6,10],[7,9,7,10],[8,9,8,10],[3,2,3,5],[2,1,2,2],[4,1,4,2],[5,1,5,5],[67,27,67,33],[22,6,23,6],[22,12,23,12],[22,24,23,24],[22,8,23,8],[22,11,23,11],[22,7,23,7],[22,29,23,29],[22,5,23,5],[8,7,8,8],[6,7,6,8],[13,7,13,8],[15,7,15,8],[14,7,14,8],[16,7,16,8],[21,1,21,5],[22,2,23,2],[22,4,23,4],[14,1,14,3],[22,1,23,1],[22,3,23,3]]}
[]
[null,"PLAN D'ACTION 2013-2020 SUR LES CHANGEMENTS CLIMATIQUES"]
[null,{"$f":"\"Action \" & [1]Accueil!D58","v":"Action en cours"}]
[null,{"$f":"[1]Accueil!D55","v":"15.1"},{"$f":"[1]Accueil!E55","v":"Programme visant la réduction des émissions de GES par le développement du transport intermodal (PREGTI)"}]
[null,"Ministère porteur:",null,{"$f":"[1]Accueil!$D$66","v":"MTMDET"}]
[null,"Détails et prévisions des dépenses par projet"]
[]
[]
[]
[]
[]
[]
[]
[]
[]
[]
[]
[]
[]
[null,null,null,null,null,null,null,null,null,null,null,null,null,null,null,null,null,null,null,null,null,null,null,null,null,null,null,null,null,null,null,null,null,null,{"$f":"IF(AND(MID(#REF!,1,9)=AI23,AI24=\"Non Vérifié\"),1,0)","v":{"$error":"#REF!"}},{"$f":"IF(AND(MID(#REF!,1,9)=AJ23,AJ24=\"Non Vérifié\"),1,0)","v":{"$error":"#REF!"}},{"$f":"IF(AND(MID(#REF!,1,9)=AK23,AK24=\"Non Vérifié\"),1,0)","v":{"$error":"#REF!"}},{"$f":"IF(AND(MID(#REF!,1,9)=AL23,AL24=\"Non Vérifié\"),1,0)","v":{"$error":"#REF!"}},{"$f":"IF(AND(MID(#REF!,1,9)=AM23,AM24=\"Non Vérifié\"),1,0)","v":{"$error":"#REF!"}},{"$f":"IF(AND(MID(#REF!,1,9)=AN23,AN24=\"Non Vérifié\"),1,0)","v":{"$error":"#REF!"}},{"$f":"IF(AND(MID(#REF!,1,9)=AO23,AO24=\"Non Vérifié\"),1,0)","v":{"$error":"#REF!"}},{"$f":"IF(AND(MID(#REF!,1,9)=AP23,AP24=\"Non Vérifié\"),1,0)","v":{"$error":"#REF!"}},{"$f":"IF(AND(MID(#REF!,1,9)=AQ23,AQ24=\"Non Vérifié\"),1,0)","v":{"$error":"#REF!"}},{"$f":"IF(AND(MID(#REF!,1,9)=AR23,AR24=\"Non Vérifié\"),1,0)","v":{"$error":"#REF!"}},{"$f":"IF(AND(MID(#REF!,1,9)=AS23,AS24=\"Non Vérifié\"),1,0)","v":{"$error":"#REF!"}},{"$f":"IF(AND(MID(#REF!,1,9)=AT23,AT24=\"Non Vérifié\"),1,0)","v":{"$error":"#REF!"}},{"$f":"IF(AND(MID(#REF!,1,9)=AU23,AU24=\"Non Vérifié\"),1,0)","v":{"$error":"#REF!"}},{"$f":"IF(AND(MID(#REF!,1,9)=AV23,AV24=\"Non Vérifié\"),1,0)","v":{"$error":"#REF!"}},{"$f":"IF(AND(MID(#REF!,1,9)=AW23,AW24=\"Non Vérifié\"),1,0)","v":{"$error":"#REF!"}},{"$f":"IF(AND(MID(#REF!,1,9)=AX23,AX24=\"Non Vérifié\"),1,0)","v":{"$error":"#REF!"}},{"$f":"IF(AND(MID(#REF!,1,9)=AY23,AY24=\"Non Vérifié\"),1,0)","v":{"$error":"#REF!"}},{"$f":"IF(AND(MID(#REF!,1,9)=AZ23,AZ24=\"Non Vérifié\"),1,0)","v":{"$error":"#REF!"}},{"$f":"IF(AND(MID(#REF!,1,9)=BA23,BA24=\"Non Vérifié\"),1,0)","v":{"$error":"#REF!"}},{"$f":"IF(AND(MID(#REF!,1,9)=BB23,BB24=\"Non Vérifié\"),1,0)","v":{"$error":"#REF!"}},{"$f":"IF(AND(MID(#REF!,1,9)=BC23,BC24=\"Non Vérifié\"),1,0)","v":{"$error":"#REF!"}},{"$f":"IF(AND(MID(#REF!,1,9)=BD23,BD24=\"Non Vérifié\"),1,0)","v":{"$error":"#REF!"}}]
[null,null,null,null,null,null,null,null,null,null,null,null,null,null,null,null,null,null,null,null,null,null,null,null,null,null,null,null,null,null,null,null,null,null,{"$f":"IF(AND(MID(#REF!,1,9)=AI23,AI24=\"Vérifié\"),1,0)","v":{"$error":"#REF!"}},{"$f":"IF(AND(MID(#REF!,1,9)=AJ23,AJ24=\"Vérifié\"),1,0)","v":{"$error":"#REF!"}},{"$f":"IF(AND(MID(#REF!,1,9)=AK23,AK24=\"Vérifié\"),1,0)","v":{"$error":"#REF!"}},{"$f":"IF(AND(MID(#REF!,1,9)=AL23,AL24=\"Vérifié\"),1,0)","v":{"$error":"#REF!"}},{"$f":"IF(AND(MID(#REF!,1,9)=AM23,AM24=\"Vérifié\"),1,0)","v":{"$error":"#REF!"}},{"$f":"IF(AND(MID(#REF!,1,9)=AN23,AN24=\"Vérifié\"),1,0)","v":{"$error":"#REF!"}},{"$f":"IF(AND(MID(#REF!,1,9)=AO23,AO24=\"Vérifié\"),1,0)","v":{"$error":"#REF!"}},{"$f":"IF(AND(MID(#REF!,1,9)=AP23,AP24=\"Vérifié\"),1,0)","v":{"$error":"#REF!"}},{"$f":"IF(AND(MID(#REF!,1,9)=AQ23,AQ24=\"Vérifié\"),1,0)","v":{"$error":"#REF!"}},{"$f":"IF(AND(MID(#REF!,1,9)=AR23,AR24=\"Vérifié\"),1,0)","v":{"$error":"#REF!"}},{"$f":"IF(AND(MID(#REF!,1,9)=AS23,AS24=\"Vérifié\"),1,0)","v":{"$error":"#REF!"}},{"$f":"IF(AND(MID(#REF!,1,9)=AT23,AT24=\"Vérifié\"),1,0)","v":{"$error":"#REF!"}},{"$f":"IF(AND(MID(#REF!,1,9)=AU23,AU24=\"Vérifié\"),1,0)","v":{"$error":"#REF!"}},{"$f":"IF(AND(MID(#REF!,1,9)=AV23,AV24=\"Vérifié\"),1,0)","v":{"$error":"#REF!"}},{"$f":"IF(AND(MID(#REF!,1,9)=AW23,AW24=\"Vérifié\"),1,0)","v":{"$error":"#REF!"}},{"$f":"IF(AND(MID(#REF!,1,9)=AX23,AX24=\"Vérifié\"),1,0)","v":{"$error":"#REF!"}},{"$f":"IF(AND(MID(#REF!,1,9)=AY23,AY24=\"Vérifié\"),1,0)","v":{"$error":"#REF!"}},{"$f":"IF(AND(MID(#REF!,1,9)=AZ23,AZ24=\"Vérifié\"),1,0)","v":{"$error":"#REF!"}},{"$f":"IF(AND(MID(#REF!,1,9)=BA23,BA24=\"Vérifié\"),1,0)","v":{"$error":"#REF!"}},{"$f":"IF(AND(MID(#REF!,1,9)=BB23,BB24=\"Vérifié\"),1,0)","v":{"$error":"#REF!"}},{"$f":"IF(AND(MID(#REF!,1,9)=BC23,BC24=\"Vérifié\"),1,0)","v":{"$error":"#REF!"}},{"$f":"IF(AND(MID(#REF!,1,9)=BD23,BD24=\"Vérifié\"),1,0)","v":{"$error":"#REF!"}}]
[null,"DÉTAILS DES PROJETS AUTORISÉS",null,null,null,null,null,null,null,null,null,null,null,"MONTANTS PROVENANT DU PACC 2013-2020 ($)",null,null,null,null,null,null,null,null,null,null,{"$f":"MONTH(#REF!)","v":{"$error":"#REF!"}},null,null,"DÉTAIL DES ÉMISSIONS DE GES RÉDUITES OU ÉVITÉES  (en tonnes CO2 éq.)"]
["No","VOLET OU THÉMATIQUE","NOM DU REQUÉRANT","NOM DU PROJET","NOMBRE DE PROJETS","RÉGION ADMINISTRATIVE","MUNICIPALITÉ","STATUT","CLASSIFICATION DU PROJET","MONTANT ENGAGÉ ($)","DATE DE L'ENGAGEMENT","DATE DU DERNIER VERSEMENT (prévu ou réalisé)","BUDGET TOTAL DU PROJET ($)","2013-2014","2014-2015","2015-2016","2016-2017","2017-2018","2018-2019","2019-2020","2020-2021","2021-2022","2022-2023","2023-2024","MONTANT DES DÉPENSES RÉELLES ($)","TOTAL DES DÉPENSES RÉELLES ET PRÉVUES ($)",null,"Type d'émission","émissions rapportées dans l'inventaire","Durée du projet (exemple: durée de vie de l'équipement)","Émissions",null,"Vérifiées",null,"2013-2014","2013-2014","2014-2015","2014-2015","2015-2016","2015-2016","2016-2017","2016-2017","2017-2018","2017-2018","2018-2019","2018-2019","2019-2020","2019-2020","2020-2021","2020-2021","2021-2022","2021-2022","2022-2023","2022-2023","2023-2024","2023-2024","Coût/tonne estimé","Coût/tonne estimé de la dernière année vérifiée"]
[null,null,null,null,null,null,null,null,null,"(convention signée, contrat, lettre de confirmation du ministre ou de son représentant ou lettre d'octroi)",null,null,null,"Réel","Réel","Réel","Réel","Prévu","Prévu","Prévu","Prévu","Prévu","Prévu","Prévu",null,null,null,null,null,null,"Réduites","Évitées","Tierce partie","M/O","Vérifié","Non vérifié","Vérifié","Non vérifié","Vérifié","Non vérifié","Vérifié","Non vérifié","Vérifié","Non vérifié","Vérifié","Non vérifié","Vérifié","Non vérifié","Vérifié","Non vérifié","Vérifié","Non vérifié","Vérifié","Non vérifié","Vérifié","Non vérifié"]
[1,"1-A","Port Franc Logistique (filiale de Port Franc)","Essai d,une chaîne de transport logistique décarbonisée entre l'Europe et l'Amérique basée sur les énergies du vent et électrique (voilier et camions électriques)",1,"06-Montréal","Outremont","AC-Actif","SU-Subvention",988750,"2017-03-31","2019-11-01",1977500,null,null,null,null,126242,485200,208700,null,null,null,null,{"$f":"SUM(N25:R25)","v":126242},{"$f":"SUM(N25:X25)","v":820142},null,"HQ-Hors-Québec",null,3,"Oui",null,"Non",null,null,null,null,null,null,null,null,null,null,47,null,null,null,null,null,null,null,null,null,null,null,null,null,{"$f":"IF(SUM(AI25:BD25)=0,0,(Y25/SUMIF($AI$20:$BD$20,\"1\",AI25:BD25)))","v":{"$error":"#DIV/0!"}}]
[2,null,"Port Franc Logistique (filiale de Port Franc)","Essai d,une chaîne de transport logistique décarbonisée entre l'Europe et l'Amérique basée sur les énergies du vent et électrique (voilier et camions électriques)",null,null,null,null,null,null,null,null,null,null,null,null,null,null,null,null,null,null,null,null,{"$f":"SUM(N26:R26)","v":0},0,null,"QC-Québec","Oui",3,"oui",null,"Non",null,null,null,null,null,null,null,null,null,null,246,null,null,null,null,null,null,null,null,null,null,null,null,null,{"$f":"IF(SUM(AI27:BD27)=0,0,(Y27/SUMIF($AI$20:$BD$20,\"1\",AI27:BD27)))","v":{"$error":"#DIV/0!"}}]
[3,"4","Railex Inc.","Acquisition d'une chargeuse sur roues pour le chargement de matériaux recyclés dans des wagons",1,"01-Bas-Saint-Laurent","Matane-Matépédia","TE-Terminé","SU-Subvention",60000,"2016-09-27","2017-09-01",225000,null,null,null,60000,null,null,null,null,null,null,null,60000,60000,null,"HQ-Hors-Québec",null,10,"Oui",null,"Oui",null,null,null,null,null,null,null,4,null,7,null,null,null,null,null,null,null,null,null,null,null,null,null,null,{"$f":"IF(SUM(AI29:BD29)=0,0,(Y29/SUMIF($AI$20:$BD$20,\"1\",AI29:BD29)))","v":0}]
[null,null,"Railex inc.","Acquisition d'une chargeuse sur roues pour le chargement de matériaux recyclés dans des wagons",null,null,null,null,null,null,null,null,null,null,null,null,null,null,null,null,null,null,null,null,0,0,null,"QC-Québec","Oui",10,"oui",null,"Oui",null,null,null,null,null,null,null,107,null,183]
[4,"1-B","Administration portuaire du Saguenay","Étude de faisabilité pour la construction d'un débarcadère de grande capacité pour l'expédition de pièces de grandes dimensions ou de poids excessifs",1,"02-Saguenay- Lac-Saint-Jean","Dubuc","AN-Annulé","SU-Subvention",4000,"2015-10-21",null,20000,null,null,4000,-4000,null,null,null,null,null,null,null,0,0,null,null,null,null,null,null,null,null,null,null,null,null,null,null,null,null,null,null,null,null,null,null,null,null,null,null,null,null,null,null,null,{"$f":"IF(SUM(AI30:BD30)=0,0,(Y30/SUMIF($AI$20:$BD$20,\"1\",AI30:BD30)))","v":0}]
[5,"1-A","Distribution Upton inc. ","Construction d'un centre de transbordement du tourteau de soya biologique",1,"16-Montérégie","Jonhson","AC-Actif","SU-Subvention",75000,"2015-10-08","2017-09-01",405972,null,null,75000,null,null,null,null,null,null,null,null,75000,75000,null,"HQ-Hors-Québec",null,20,"Oui","Oui",null,null,null,null,null,null,null,null,null,null,null,null,null,null,null,null,null,null,null,null,null,null,null,null,null,{"$f":"IF(SUM(AI32:BD32)=0,0,(Y32/SUMIF($AI$20:$BD$20,\"1\",AI32:BD32)))","v":{"$error":"#DIV/0!"}}]
[null,null,"Distribution Upton inc. ","Construction d'un centre de transbordement du tourteau de soya biologique",null,null,null,null,null,null,null,null,null,null,null,null,null,null,null,null,null,null,null,null,0,0,null,"QC-Québec","Oui",20,"oui","Oui"]
[6,"4","Track Vale International (9306-4855 Québec Inc)","Aménagement d'un centre de transbordement intermodal pour les métaux recyclés en vrac",1,"16-Montérégie","Jonhson","TE-Terminé","SU-Subvention",600000,"2015-09-10","2017-12-01",1505000,null,null,600000,null,null,-300000,null,null,null,null,null,600000,300000,null,"HQ-Hors-Québec",null,20,"oui",null,"Non",null,null,null,null,null,null,552,null,552,null,552,null,null,null,null,null,null,null,null,null,null,null,null,null,{"$f":"IF(SUM(AI34:BD34)=0,0,(Y34/SUMIF($AI$20:$BD$20,\"1\",AI34:BD34)))","v":0}]
[null,null,"Track Vale International (9306-4855 Québec Inc)","Aménagement d'un centre de transbordement intermodal pour les métaux recyclés en vrac",null,null,null,null,null,null,null,null,null,null,null,null,null,null,null,null,null,null,null,null,0,0,null,"QC-Québec","Oui",20,"oui",null,"Non",null,null,null,null,null,null,89,null,89,null,89]
[7,"1-A","Distribution Upton inc. ","Étude visant à évaluer le potentiel de diversification et d'expansion du centre de transbordement ferroviaire",1,"16-Montérégie","Jonhson","TE-Terminé","SU-Subvention",17500,"2015-09-10","2016-03-29",35000,null,null,12974,null,null,null,null,null,null,null,null,12974,12974,null,null,null,null,null,null,null,null,null,null,null,null,null,null,null,null,null,null,null,null,null,null,null,null,null,null,null,null,null,null,null,{"$f":"IF(SUM(AI35:BD35)=0,0,(Y35/SUMIF($AI$20:$BD$20,\"1\",AI35:BD35)))","v":0}]
[8,"4","Termont Montréal Inc.","Remplacement de 2 grues fonctionnant au diesel par 2 grues électriques Post-Panamax",1,"06-Montréal","Bourget","AC-Actif","SU-Subvention",3200000,"2015-09-04","2017-10-01",19800000,null,null,2780000,420000,null,null,null,null,null,null,null,3200000,3200000,null,"QC-Québec","Oui",25,"Oui",null,null,null,null,null,null,null,null,null,null,null,null,null,null,null,null,null,null,null,null,null,null,null,null,null,null,0]
[9,"1-A","Traversier le Passeur Inc.","Étude pour la faisabilité de l'électrification du traversier NM Le Passeur",1,"15-Laurentides","Argenteuil","TE-Terminé","SU-Subvention",23855,"2015-08-26","2016-07-27",36700,null,null,23855,null,null,null,null,null,null,null,null,23855,23855,null,null,null,null,null,null,null,null,null,null,null,null,null,null,null,null,null,null,null,null,null,null,null,null,null,null,null,null,null,null,null,0]
[10,"4","Aliments Breton Inc.","Construction d'un centre de transbordement pour les grains à Scott",1,"12 Chaudières-Appalaches","Beauce-Nord","AC-Actif","SU-Subvention",550000,"2015-08-20","2017-09-01",6962068,null,null,550000,null,null,null,null,null,null,null,null,550000,550000,null,"QC-Québec","Oui",40,"Oui",null,null,null,null,null,null,null,null,null,null,null,null,null,null,null,null,null,null,null,null,null,null,null,null,null,null,0]
[11,"1-A","Commission régionale du port de Gros-Cacouna","Réaliser une étude pour la mise en place d'un service roulier entre Gros-Cacouna et un port à déterminer sur la Côte-Nord",1,"01-Bas-Saint-Laurent","Rivière-du-Loup","TE-Terminé","SU-Subvention",9500,"2015-05-28","2016-02-09",47743,null,null,8780,null,null,null,null,null,null,null,null,8780,8780,null,null,null,null,null,null,null,null,null,null,null,null,null,null,null,null,null,null,null,null,null,null,null,null,null,null,null,null,null,null,null,{"$error":"#DIV/0!"}]
[12,"1-A","Groupe Riverin maritime inc.","Acquisition d'un navire \"model single decker\" équipé d'une excavatrice pour le transport d'agrégat entre Forestiville, Rimouski et Cacouna",1,"02-Saguenay- Lac-Saint-Jean","Saguenay","AC-Actif","SU-Subvention",500000,"2015-02-18","2017-11-01",3550200,null,100000,400000,null,null,null,null,null,null,null,null,500000,500000,null,"QC-Québec","Oui",15,"Oui",null,"Non",null,null,null,null,null,null,1115,null,1115,null,1115,null,null,null,null,null,null,null,null,null,null,null,null,null,{"$error":"#DIV/0!"}]
[13,"1-B","Trans rail FN27 Inc.","Ajout de voies ferrées, installation de quais, de réservoirs et d'équipements de manutention pour le transbordement de propane à Val d'Or",1,"08-Abitibi-Témiscamingue","Val d'Or","AC-Actif","SU-Subvention",1500000,"2014-12-08","2017-10-01",4328409,null,750000,750000,null,null,-750000,null,null,null,null,null,1500000,750000,null,"HQ-Hors-Québec",null,20,null,"Oui","Oui",null,null,null,null,null,160,null,160,null,160,null,null,null,null,null,null,null,null,null,null,null,null,null,null,{"$f":"IF(SUM(AI42:BD42)=0,0,(Y42/SUMIF($AI$20:$BD$20,\"1\",AI42:BD42)))","v":{"$error":"#DIV/0!"}}]
[null,null,"Trans rail FN27 Inc.","Ajout de voies ferrées, installation de quais, de réservoirs et d'équipements de manutention pour le transbordement de propane à Val d'Or",null,null,null,null,null,null,null,null,null,null,null,null,null,null,null,null,null,null,null,null,0,0,null,"QC-Québec","Oui",20,null,"oui","Oui",null,null,null,null,null,68,null,68,null,68]
[14,"4","Logi-Bel inc.","Aménagement d'un centre de transbordement de billes de bois",1,"05-Estrie","Lac Mégantic","TE-Terminé","SU-Subvention",50000,"2014-10-31","2016-03-02",100000,null,50000,-19573,null,null,null,null,null,null,null,null,30427,30427,null,"HQ-Hors-Québec",null,20,"oui",null,"Oui",null,null,null,13,null,78,null,78,null,78,null,null,null,null,null,null,null,null,null,null,null,null,null,null,{"$f":"IF(SUM(AI44:BD44)=0,0,(Y44/SUMIF($AI$20:$BD$20,\"1\",AI44:BD44)))","v":0}]
[null,null,"Logi-Bel inc.","Aménagement d'un centre de transbordement de billes de bois",null,null,null,null,null,null,null,null,null,null,null,null,null,null,null,null,null,null,null,null,0,0,null,"QC-Québec","Oui",20,"oui",null,"Oui",null,null,null,5,null,31,null,31,null,31]
[15,4,"Municipalité de Grande-Vallée","Étude pour l'inspection du quai de Grande-Vallée afin de pouvoir relancer les activités commerciales",1,"11-Gaspésie-Iles-de-la-Madeleine","Grande-Vallée","TE-Terminé","SU-Subvention",23687,"2014-10-03","2015-09-04",47375,null,23687,-3850,null,null,null,null,null,null,null,null,19837,19837,null,null,null,null,null,null,null,null,null,null,null,null,null,null,null,null,null,null,null,null,null,null,null,null,null,null,null,null,null,null,null,{"$f":"IF(SUM(#REF!)=0,0,(#REF!/SUMIF($AI$20:$BD$20,\"1\",#REF!)))","v":{"$error":"#REF!"}}]
[16,"1-B","Solugaz Inc.","Aménagement d’un terminal ferroviaire pour le transbordement de gaz propane",1,"03-Capitale-Nationale","Québec","AC-Actif","SU-Subvention",324750,"2018-03-29","2020-01-01",997500,null,null,null,null,null,324750,null,null,null,null,null,0,{"$f":"SUM(N45:X45)","v":324750},null,"QC-Québec","Oui",50,"Oui",null,null,null,null,null,null,null,null,null,null,null,null,null,null,null,null,null,null,null,null,null,null,null,null,null,null,{"$f":"IF(SUM(#REF!)=0,0,(#REF!/SUMIF($AI$20:$BD$20,\"1\",#REF!)))","v":{"$error":"#REF!"}}]
[17,null,"Solugaz Inc.","Aménagement d’un terminal ferroviaire pour le transbordement de gaz propane",null,null,null,null,null,null,null,null,null,null,null,null,null,null,null,null,null,null,null,null,0,{"$f":"SUM(N46:X46)","v":0},null,"HQ-Hors-Québec",null,50,"Oui",null,null,null,null,null,null,null,null,null,null,null,null,null,null,null,null,null,null,null,null,null,null,null,null,null,null,{"$f":"IF(SUM(#REF!)=0,0,(#REF!/SUMIF($AI$20:$BD$20,\"1\",#REF!)))","v":{"$error":"#REF!"}}]
[18,"1-A","Marmen Énergie Inc.","Construction d'un embranchement ferroviaire pour le transport de sections de tours d'éoliennes",1,"01-Bas-Saint-Laurent","Matane","AC-Actif","SU-Subvention",464500,"2018-03-29","2020-01-01",2307000,null,null,null,null,150000,314500,null,null,null,null,null,150000,{"$f":"SUM(N47:X47)","v":464500},null,"QC-Québec","Oui",15,"Oui",null,null,null,null,null,null,null,null,null,null,null,null,null,null,null,null,null,null,null,null,null,null,null,null,null,null,{"$f":"IF(SUM(#REF!)=0,0,(#REF!/SUMIF($AI$20:$BD$20,\"1\",#REF!)))","v":{"$error":"#REF!"}}]
[19,"1-A","Groupe TYT ","Aménagement d'un centre de transfert intermodal routier-ferroviaire",1,"05-Estrie","Richmond","AC-Actif","SU-Subvention",1500000,"2018-03-13","2020-09-01",3798500,null,null,null,null,750000,750000,null,null,null,null,null,750000,{"$f":"SUM(N48:X48)","v":1500000},null,"QC-Québec","Oui",8,"Oui","Oui",null,null,null,null,null,null,null,null,null,null,null,null,null,null,null,null,null,null,null,null,null,null,null,null,null,{"$f":"IF(SUM(#REF!)=0,0,(#REF!/SUMIF($AI$20:$BD$20,\"1\",#REF!)))","v":{"$error":"#REF!"}}]
[20,null,"Groupe TYT ","Aménagement d'un centre de transfert intermodal routier-ferroviaire",null,null,null,null,null,null,null,null,null,null,null,null,null,null,null,null,null,null,null,null,0,{"$f":"SUM(N49:X49)","v":0},null,"HQ-Hors-Québec",null,8,"Oui","Oui",null,null,null,null,null,null,null,null,null,null,null,null,null,null,null,null,null,null,null,null,null,null,null,null,null,{"$f":"IF(SUM(#REF!)=0,0,(#REF!/SUMIF($AI$20:$BD$20,\"1\",#REF!)))","v":{"$error":"#REF!"}}]
[21,"1-B","Danaca Transport Montréal Ltee","Acquisition d'équipement de levage magnétisé pour le chargement des wagons",1,"16-Montérégie","Longueil","AC-Actif","SU-Subvention",425000,"2018-03-29","2020-09-01",925000,null,null,null,null,null,425000,null,null,null,null,null,0,{"$f":"SUM(N50:X50)","v":425000},null,"QC-Québec","Oui",10,null,"Oui",null,null,null,null,null,null,null,null,null,null,null,null,null,null,null,null,null,null,null,null,null,null,null,null,null,{"$f":"IF(SUM(#REF!)=0,0,(#REF!/SUMIF($AI$20:$BD$20,\"1\",#REF!)))","v":{"$error":"#REF!"}}]
[22,null,"Danaca Transport Montréal Ltee","Acquisition d'équipement de levage magnétisé pour le chargement des wagons",null,null,null,null,null,null,null,null,null,null,null,null,null,null,null,null,null,null,null,null,0,{"$f":"SUM(N51:X51)","v":0},null,"HQ-Hors-Québec",null,10,null,"Oui",null,null,null,null,null,null,null,null,null,null,null,null,null,null,null,null,null,null,null,null,null,null,null,null,null,{"$f":"IF(SUM(#REF!)=0,0,(#REF!/SUMIF($AI$20:$BD$20,\"1\",#REF!)))","v":{"$error":"#REF!"}}]
[23,"1-B","Papiers White Birch -       S.E.C. FF Soucy WB","Projet intermodale FF.Soucy à Rivière-du-Loup - Aménagement de voies ferrées et acquisition d'équipement de transbordement pour transférer l'expédition de papier du mode camionnage vers le mode ferroviaire",1,"01-Bas-Saint-Laurent","Rivière-du-Loup","AC-Actif","SU-Subvention",467500,"2018-03-05","2020-01-01",935000,null,null,null,null,117500,350000,null,null,null,null,null,117500,{"$f":"SUM(N52:X52)","v":467500},null,"QC-Québec","Oui",5,"Oui",null,null,null,null,null,null,null,null,null,null,null,null,null,null,null,null,null,null,null,null,null,null,null,null,null,null,{"$f":"IF(SUM(#REF!)=0,0,(#REF!/SUMIF($AI$20:$BD$20,\"1\",#REF!)))","v":{"$error":"#REF!"}}]
[24,"1-A","Stablex Canada Inc.","Installation de 2 voies ferrées et achat d'un locotracteur à l'usine de Stablex à Blainville",1,"15-Laurentides","Blainville","AC-Actif","SU-Subvention",626140,"2018-03-29","2020-03-31",2179000,null,null,null,null,25000,601140,null,null,null,null,null,25000,{"$f":"SUM(N53:X53)","v":626140},null,"QC-Québec","Oui",30,"Oui",null,null,null,null,null,null,null,null,null,null,null,null,null,null,null,null,null,null,null,null,null,null,null,null,null,null,{"$f":"IF(SUM(#REF!)=0,0,(#REF!/SUMIF($AI$20:$BD$20,\"1\",#REF!)))","v":{"$error":"#REF!"}}]
[25,null,"Stablex Canada Inc.","Installation de 2 voies ferrées et achat d'un locotracteur à l'usine de Stablex à Blainville",null,null,null,null,null,null,null,null,null,null,null,null,null,null,null,null,null,null,null,null,0,{"$f":"SUM(N54:X54)","v":0},null,"HQ-Hors-Québec",null,30,"Oui",null,null,null,null,null,null,null,null,null,null,null,null,null,null,null,null,null,null,null,null,null,null,null,null,null,null,{"$f":"IF(SUM(#REF!)=0,0,(#REF!/SUMIF($AI$20:$BD$20,\"1\",#REF!)))","v":{"$error":"#REF!"}}]
[26,null,null,null,null,null,null,null,null,null,null,null,null,null,null,null,null,null,null,null,null,null,null,null,0,{"$f":"SUM(N55:X55)","v":0},null,null,null,null,null,null,null,null,null,null,null,null,null,null,null,null,null,null,null,null,null,null,null,null,null,null,null,null,null,null,null,{"$f":"IF(SUM(#REF!)=0,0,(#REF!/SUMIF($AI$20:$BD$20,\"1\",#REF!)))","v":{"$error":"#REF!"}}]
[27,null,null,null,null,null,null,null,null,null,null,null,null,null,null,null,null,null,null,null,null,null,null,null,0,{"$f":"SUM(N56:X56)","v":0},null,null,null,null,null,null,null,null,null,null,null,null,null,null,null,null,null,null,null,null,null,null,null,null,null,null,null,null,null,null,null,{"$f":"IF(SUM(#REF!)=0,0,(#REF!/SUMIF($AI$20:$BD$20,\"1\",#REF!)))","v":{"$error":"#REF!"}}]
[28,null,null,null,null,null,null,null,null,null,null,null,null,null,null,null,null,null,null,null,null,null,null,null,0,{"$f":"SUM(N57:X57)","v":0},null,null,null,null,null,null,null,null,null,null,null,null,null,null,null,null,null,null,null,null,null,null,null,null,null,null,null,null,null,null,null,{"$f":"IF(SUM(#REF!)=0,0,(#REF!/SUMIF($AI$20:$BD$20,\"1\",#REF!)))","v":{"$error":"#REF!"}}]
[29,null,null,null,null,null,null,null,null,null,null,null,null,null,null,null,null,null,null,null,null,null,null,null,0,{"$f":"SUM(N58:X58)","v":0},null,null,null,null,null,null,null,null,null,null,null,null,null,null,null,null,null,null,null,null,null,null,null,null,null,null,null,null,null,null,null,{"$f":"IF(SUM(#REF!)=0,0,(#REF!/SUMIF($AI$20:$BD$20,\"1\",#REF!)))","v":{"$error":"#REF!"}}]
[30,null,null,null,null,null,null,null,null,null,null,null,null,null,null,null,null,null,null,null,null,null,null,null,0,{"$f":"SUM(N59:X59)","v":0},null,null,null,null,null,null,null,null,null,null,null,null,null,null,null,null,null,null,null,null,null,null,null,null,null,null,null,null,null,null,null,{"$f":"IF(SUM(#REF!)=0,0,(#REF!/SUMIF($AI$20:$BD$20,\"1\",#REF!)))","v":{"$error":"#REF!"}}]
[31,null,null,null,null,null,null,null,null,null,null,null,null,null,null,null,null,null,null,null,null,null,null,null,0,{"$f":"SUM(N60:X60)","v":0},null,null,null,null,null,null,null,null,null,null,null,null,null,null,null,null,null,null,null,null,null,null,null,null,null,null,null,null,null,null,null,{"$f":"IF(SUM(#REF!)=0,0,(#REF!/SUMIF($AI$20:$BD$20,\"1\",#REF!)))","v":{"$error":"#REF!"}}]
[32,null,null,null,null,null,null,null,null,null,null,null,null,null,null,null,null,null,null,null,null,null,null,null,0,{"$f":"SUM(N61:X61)","v":0},null,null,null,null,null,null,null,null,null,null,null,null,null,null,null,null,null,null,null,null,null,null,null,null,null,null,null,null,null,null,null,{"$f":"IF(SUM(#REF!)=0,0,(#REF!/SUMIF($AI$20:$BD$20,\"1\",#REF!)))","v":{"$error":"#REF!"}}]
[33,null,null,null,null,null,null,null,null,null,null,null,null,null,null,null,null,null,null,null,null,null,null,null,0,{"$f":"SUM(N62:X62)","v":0},null,null,null,null,null,null,null,null,null,null,null,null,null,null,null,null,null,null,null,null,null,null,null,null,null,null,null,null,null,null,null,{"$f":"IF(SUM(#REF!)=0,0,(#REF!/SUMIF($AI$20:$BD$20,\"1\",#REF!)))","v":{"$error":"#REF!"}}]
[34,null,null,null,null,null,null,null,null,null,null,null,null,null,null,null,null,null,null,null,null,null,null,null,0,{"$f":"SUM(N63:X63)","v":0},null,null,null,null,null,null,null,null,null,null,null,null,null,null,null,null,null,null,null,null,null,null,null,null,null,null,null,null,null,null,null,{"$f":"IF(SUM(#REF!)=0,0,(#REF!/SUMIF($AI$20:$BD$20,\"1\",#REF!)))","v":{"$error":"#REF!"}}]
[35,null,null,null,null,null,null,null,null,null,null,null,null,null,null,null,null,null,null,null,null,null,null,null,0,{"$f":"SUM(N64:X64)","v":0},null,null,null,null,null,null,null,null,null,null,null,null,null,null,null,null,null,null,null,null,null,null,null,null,null,null,null,null,null,null,null,{"$f":"IF(SUM(#REF!)=0,0,(#REF!/SUMIF($AI$20:$BD$20,\"1\",#REF!)))","v":{"$error":"#REF!"}}]
[36,null,null,null,null,null,null,null,null,null,null,null,null,null,null,null,null,null,null,null,null,null,null,null,0,{"$f":"SUM(N65:X65)","v":0},null,null,null,null,null,null,null,null,null,null,null,null,null,null,null,null,null,null,null,null,null,null,null,null,null,null,null,null,null,null,null,{"$f":"IF(SUM(#REF!)=0,0,(#REF!/SUMIF($AI$20:$BD$20,\"1\",#REF!)))","v":{"$error":"#REF!"}}]
[37,null,null,null,null,null,null,null,null,null,null,null,null,null,null,null,null,null,null,null,null,null,null,null,0,{"$f":"SUM(N66:X66)","v":0},null,null,null,null,null,null,null,null,null,null,null,null,null,null,null,null,null,null,null,null,null,null,null,null,null,null,null,null,null,null,null,{"$f":"IF(SUM(#REF!)=0,0,(#REF!/SUMIF($AI$20:$BD$20,\"1\",#REF!)))","v":{"$error":"#REF!"}}]
["tot",null,null,null,null,null,null,null,null,null,null,null,null,null,null,null,null,null,null,null,null,null,null,null,{"$f":"SUM(N67:Q67)","v":0},0]
[null,"TOTAL DES DÉPENSES DE PROJET ($)",null,null,null,null,null,null,null,{"$f":"SUM(J25:J67)","v":11410182},null,null,null,{"$f":"SUM(N25:N67)","v":0},923687,5181186,476000,1168742,2200590,208700,0,0,0,0,7749615,10158905,null,"TOTAL (tonnes CO2 éq.)",null,null,null,null,null,null,{"$f":"SUM(AI25:AI67)","v":0},0,18,0,337,1756,448,1756,527,2049,0,0,0,0,0,0,0,0,0,0,0,0,0]
[null,"TOTAL CONTRATS FONCTIONNEMENT ($)",null,null,null,null,null,null,null,{"$f":"SUMIF($I$25:$I67,\"CF-Contrat fonctionnement\",J25:J67)+SUMIF($I$25:$I67,\"CP-Contrat service professionnel\",J25:J67)+SUMIF($I$25:$I67,\"CT-Contrat service technique\",J25:J67)","v":0},null,null,null,{"$f":"SUMIF($I$25:$I67,\"CF-Contrat fonctionnement\",N25:N67)+SUMIF($I$25:$I67,\"CP-Contrat service professionnel\",N25:N67)+SUMIF($I$25:$I67,\"CT-Contrat service technique\",N25:N67)","v":0},{"$f":"SUMIF($I$25:$I67,\"CF-Contrat fonctionnement\",O25:O67)+SUMIF($I$25:$I67,\"CP-Contrat service professionnel\",O25:O67)+SUMIF($I$25:$I67,\"CT-Contrat service technique\",O25:O67)","v":0},{"$f":"SUMIF($I$25:$I67,\"CF-Contrat fonctionnement\",P25:P67)+SUMIF($I$25:$I67,\"CP-Contrat service professionnel\",P25:P67)+SUMIF($I$25:$I67,\"CT-Contrat service technique\",P25:P67)","v":0},{"$f":"SUMIF($I$25:$I67,\"CF-Contrat fonctionnement\",Q25:Q67)+SUMIF($I$25:$I67,\"CP-Contrat service professionnel\",Q25:Q67)+SUMIF($I$25:$I67,\"CT-Contrat service technique\",Q25:Q67)","v":0},{"$f":"SUMIF($I$25:$I67,\"CF-Contrat fonctionnement\",R25:R67)+SUMIF($I$25:$I67,\"CP-Contrat service professionnel\",R25:R67)+SUMIF($I$25:$I67,\"CT-Contrat service technique\",R25:R67)","v":0},{"$f":"SUMIF($I$25:$I67,\"CF-Contrat fonctionnement\",S25:S67)+SUMIF($I$25:$I67,\"CP-Contrat service professionnel\",S25:S67)+SUMIF($I$25:$I67,\"CT-Contrat service technique\",S25:S67)","v":0},{"$f":"SUMIF($I$25:$I67,\"CF-Contrat fonctionnement\",T25:T67)+SUMIF($I$25:$I67,\"CP-Contrat service professionnel\",T25:T67)+SUMIF($I$25:$I67,\"CT-Contrat service technique\",T25:T67)","v":0},{"$f":"SUMIF($I$25:$I67,\"CF-Contrat fonctionnement\",U25:U67)+SUMIF($I$25:$I67,\"CP-Contrat service professionnel\",U25:U67)+SUMIF($I$25:$I67,\"CT-Contrat service technique\",U25:U67)","v":0},{"$f":"SUMIF($I$25:$I67,\"CF-Contrat fonctionnement\",V25:V67)+SUMIF($I$25:$I67,\"CP-Contrat service professionnel\",V25:V67)+SUMIF($I$25:$I67,\"CT-Contrat service technique\",V25:V67)","v":0},{"$f":"SUMIF($I$25:$I67,\"CF-Contrat fonctionnement\",W25:W67)+SUMIF($I$25:$I67,\"CP-Contrat service professionnel\",W25:W67)+SUMIF($I$25:$I67,\"CT-Contrat service technique\",W25:W67)","v":0},{"$f":"SUMIF($I$25:$I67,\"CF-Contrat fonctionnement\",X25:X67)+SUMIF($I$25:$I67,\"CP-Contrat service professionnel\",X25:X67)+SUMIF($I$25:$I67,\"CT-Contrat service technique\",X25:X67)","v":0},{"$f":"SUMIF($I$25:$I67,\"CF-Contrat fonctionnement\",Y25:Y67)+SUMIF($I$25:$I67,\"CP-Contrat service professionnel\",Y25:Y67)+SUMIF($I$25:$I67,\"CT-Contrat service technique\",Y25:Y67)","v":0},{"$f":"SUMIF($I$25:$I67,\"CF-Contrat fonctionnement\",Z25:Z67)+SUMIF($I$25:$I67,\"CP-Contrat service professionnel\",Z25:Z67)+SUMIF($I$25:$I67,\"CT-Contrat service technique\",Z25:Z67)","v":0}]
[null,"TOTAL CONTRATS IMMOBILISATION ($)",null,null,null,null,null,null,null,{"$f":"SUMIF(I25:I67,\"CI-Contrat immobilisation\",J25:J67)","v":0},null,null,null,{"$f":"SUMIF($I$25:$I67,\"CI-Contrat immobilisation\",N25:N67)","v":0},{"$f":"SUMIF($I$25:$I67,\"CI-Contrat immobilisation\",O25:O67)","v":0},{"$f":"SUMIF($I$25:$I67,\"CI-Contrat immobilisation\",P25:P67)","v":0},{"$f":"SUMIF($I$25:$I67,\"CI-Contrat immobilisation\",Q25:Q67)","v":0},{"$f":"SUMIF($I$25:$I67,\"CI-Contrat immobilisation\",R25:R67)","v":0},{"$f":"SUMIF($I$25:$I67,\"CI-Contrat immobilisation\",S25:S67)","v":0},{"$f":"SUMIF($I$25:$I67,\"CI-Contrat immobilisation\",T25:T67)","v":0},{"$f":"SUMIF($I$25:$I67,\"CI-Contrat immobilisation\",U25:U67)","v":0},{"$f":"SUMIF($I$25:$I67,\"CI-Contrat immobilisation\",V25:V67)","v":0},{"$f":"SUMIF($I$25:$I67,\"CI-Contrat immobilisation\",W25:W67)","v":0},{"$f":"SUMIF($I$25:$I67,\"CI-Contrat immobilisation\",X25:X67)","v":0},{"$f":"SUMIF($I$25:$I67,\"CI-Contrat immobilisation\",Y25:Y67)","v":0},{"$f":"SUMIF($I$25:$I67,\"CI-Contrat immobilisation\",Z25:Z67)","v":0}]
[null,"TOTAL DES SUBVENTIONS ($)",null,null,null,null,null,null,null,{"$f":"SUMIF(I25:I67,\"SU-Subvention\",J25:J67)","v":11410182},null,null,null,{"$f":"SUMIF($I$25:$I70,\"SU-Subvention\",N25:N40)","v":0},{"$f":"SUMIF($I$25:$I70,\"SU-Subvention\",O25:O40)","v":923687},{"$f":"SUMIF($I$25:$I70,\"SU-Subvention\",P25:P40)","v":5181186},{"$f":"SUMIF($I$25:$I70,\"SU-Subvention\",Q25:Q40)","v":476000},{"$f":"SUMIF($I$25:$I70,\"SU-Subvention\",R25:R40)","v":1168742},{"$f":"SUMIF($I$25:$I70,\"SU-Subvention\",S25:S40)","v":2200590},{"$f":"SUMIF($I$25:$I70,\"SU-Subvention\",T25:T40)","v":208700},{"$f":"SUMIF($I$25:$I70,\"SU-Subvention\",U25:U40)","v":0},{"$f":"SUMIF($I$25:$I70,\"SU-Subvention\",V25:V40)","v":0},{"$f":"SUMIF($I$25:$I70,\"SU-Subvention\",W25:W40)","v":0},{"$f":"SUMIF($I$25:$I70,\"SU-Subvention\",X25:X40)","v":0},{"$f":"SUMIF($I$25:$I70,\"SU-Subvention\",Y25:Y40)","v":7749615},{"$f":"SUMIF($I$25:$I70,\"SU-Subvention\",Z25:Z40)","v":10158905}]

{"sheet":"indicateurs quantitatifs","index":6,"n_rows":45,"n_cols":44,"rows_kept":45,"cut":false,"hidden":false,"merged":[[1,1,1,4],[2,1,2,3],[3,3,3,6],[4,1,4,3],[22,19,23,19],[22,3,23,3],[22,4,23,5],[21,1,21,7],[22,1,23,1],[22,2,23,2],[1,8,5,12],[24,6,24,7],[22,6,23,7],[5,1,5,6],[24,4,24,5],[30,4,30,5],[28,4,28,5],[25,4,25,5],[27,4,27,5],[26,4,26,5],[25,6,25,7],[30,6,30,7],[28,6,28,7],[26,6,26,7],[27,6,27,7],[43,4,43,5],[43,6,43,7],[41,4,41,5],[41,6,41,7],[42,4,42,5],[42,6,42,7],[38,4,38,5],[38,6,38,7],[39,4,39,5],[40,4,40,5],[40,6,40,7],[39,6,39,7],[37,4,37,5],[29,6,29,7],[37,6,37,7],[32,6,32,7],[33,6,33,7],[34,6,34,7],[35,6,35,7],[31,4,31,5],[34,4,34,5],[32,4,32,5],[36,4,36,5],[36,6,36,7],[35,4,35,5],[31,6,31,7],[33,4,33,5],[29,4,29,5]]}
[]
[null,"PLAN D'ACTION 2013-2020 SUR LES CHANGEMENTS CLIMATIQUES",null,null,null,null,null,null,{"$f":"IF(Utilitaire!C10=0,\"Les nouveaux indicateurs inscrits devront être soumis pour approbation au Conseil de gestion du Fonds vert.\",IF(Utilitaire!C10=1,\"Le premier indicateur présenté dans cette page a été convenu au préalable par des annexes 3 ou 4 de l’entente administrative. \n\nLes nouveaux indicateurs inscrits devront être soumis pour approbation au Conseil de gestion du Fonds vert.\",\"Les \"&Utilitaire!C10&\" premiers indicateurs présentés dans cette page ont été convenus au préalable par des annexes 3 ou 4 de l’entente administrative. \n\nLes nouveaux indicateurs inscrits  devront être soumis pour approbation au Conseil de gestion du Fonds vert.\"))","v":"Les 11 premiers indicateurs présentés dans cette page ont été convenus au préalable par des annexes 3 ou 4 de l’entente administrative. \n\nLes nouveaux indicateurs inscrits  devront être soumis pour approbation au Conseil de gestion du Fonds vert."}]
[null,{"$f":"\"Action \" & Accueil!D58","v":"Action en cours"}]
[null,{"$f":"Accueil!D55","v":"15.1"},null,{"$f":"Accueil!E55","v":"Programme visant la réduction des émissions de GES par le développement du transport intermodal (PREGTI)"}]
[null,"Ministère porteur:",null,null,{"$f":"Accueil!$D$66","v":"MTMDET"}]
[null,"Indicateurs quantitatifs"]
[]
[]
[]
[]
[]
[]
[]
[]
[]
[]
[]
[]
[]
[]
[]
[null,"SECTION 9 - INDICATEURS DE PERFORMANCE QUANTITATIFS ",null,null,null,null,null,null,{"$f":"IF(OR(AND(MONTH(#REF!)>6,YEAR(#REF!)=VALUE(MID(I23,1,4))),YEAR(#REF!)>VALUE(MID(I23,1,4))),\"Réel\",\"Prévu\")","v":{"$error":"#REF!"}},{"$f":"IF(OR(AND(MONTH(#REF!)>6,YEAR(#REF!)=VALUE(MID(J23,1,4))),YEAR(#REF!)>VALUE(MID(J23,1,4))),\"Réel\",\"Prévu\")","v":{"$error":"#REF!"}},{"$f":"IF(OR(AND(MONTH(#REF!)>6,YEAR(#REF!)=VALUE(MID(K23,1,4))),YEAR(#REF!)>VALUE(MID(K23,1,4))),\"Réel\",\"Prévu\")","v":{"$error":"#REF!"}},{"$f":"IF(OR(AND(MONTH(#REF!)>6,YEAR(#REF!)=VALUE(MID(L23,1,4))),YEAR(#REF!)>VALUE(MID(L23,1,4))),\"Réel\",\"Prévu\")","v":{"$error":"#REF!"}},{"$f":"IF(OR(AND(MONTH(#REF!)>6,YEAR(#REF!)=VALUE(MID(M23,1,4))),YEAR(#REF!)>VALUE(MID(M23,1,4))),\"Réel\",\"Prévu\")","v":{"$error":"#REF!"}},{"$f":"IF(OR(AND(MONTH(#REF!)>6,YEAR(#REF!)=VALUE(MID(N23,1,4))),YEAR(#REF!)>VALUE(MID(N23,1,4))),\"Réel\",\"Prévu\")","v":{"$error":"#REF!"}},{"$f":"IF(OR(AND(MONTH(#REF!)>6,YEAR(#REF!)=VALUE(MID(O23,1,4))),YEAR(#REF!)>VALUE(MID(O23,1,4))),\"Réel\",\"Prévu\")","v":{"$error":"#REF!"}},{"$f":"IF(OR(AND(MONTH(#REF!)>6,YEAR(#REF!)=VALUE(MID(P23,1,4))),YEAR(#REF!)>VALUE(MID(P23,1,4))),\"Réel\",\"Prévu\")","v":{"$error":"#REF!"}},{"$f":"IF(OR(AND(MONTH(#REF!)>6,YEAR(#REF!)=VALUE(MID(Q23,1,4))),YEAR(#REF!)>VALUE(MID(Q23,1,4))),\"Réel\",\"Prévu\")","v":{"$error":"#REF!"}},{"$f":"IF(OR(AND(MONTH(#REF!)>6,YEAR(#REF!)=VALUE(MID(R23,1,4))),YEAR(#REF!)>VALUE(MID(R23,1,4))),\"Réel\",\"Prévu\")","v":{"$error":"#REF!"}},{"$f":"IF(OR(AND(MONTH(#REF!)>6,YEAR(#REF!)=VALUE(MID(S23,1,4))),YEAR(#REF!)>VALUE(MID(S23,1,4))),\"Réel\",\"Prévu\")","v":{"$error":"#REF!"}},{"$f":"MONTH(#REF!)","v":{"$error":"#REF!"}}]
[null,"ANNÉE PRÉVUE D'ATTEINTE DE LA CIBLE","CIBLE","UNITÉ DE MESURE","DESCRIPTION DE L'INDICATEUR",null,"TYPE D'INDICATEUR",null,"2013-2014","2014-2015","2015-2016","2016-2017","2017-2018","2018-2019","2019-2020","2020-2021","2021-2022","2022-2023","2023-2024","RÉSULTAT À COMPARER AVEC LA CIBLE"]
[null,null,null,null,null,null,null,null,"Réel","Réel","Réel","Réel","Réel","Réel","Réel","Réel","Réel","Réel","Réel"]
[1,2017,6000000,"$","Économie liée au coût de conservation des chaussées (couche d'usure)",null,"minimum à atteindre",null,null,null,75623,79410,null,null,null,null,null,null,null,155033]
[2,2018,8000000,"$","Économie liée au coût de conservation des chaussées au Québec (couche d'usure)",null,"minimum à atteindre",null,null,null,75623,79410,79410,null,null,null,null,null,null,234443]
[3,2020,12000000,"$","Économie liée au coût de conservation des chaussées au Québec (couche d'usure)",null,"minimum à atteindre",null,null,null,75623,79410,79410,null,null,null,null,null,null,234443]
[4,2017,110000,"T/CO2","Réduction annuelle des émissions de gaz à effet de serre (GES)",null,"minimum à atteindre",null,null,18,2093,2204,null,null,null,null,null,null,null,2204]
[5,2020,250000,"T/CO2","Réduction annuelle des émissions de gaz à effet de serre (GES)",null,"minimum à atteindre",null,null,18,2093,2204,2576,null,null,null,null,null,null,2576]
[6,2017,1300000,"tonnes","Tonnage ferroviaire additionnel généré par les projets",null,"minimum à atteindre",null,null,null,52766,56436,null,null,null,null,null,null,null,109202]
[7,2018,1730000,"tonnes","Tonnage ferroviaire additionnel généré par les projets",null,"minimum à atteindre",null,null,null,52766,56436,56436,null,null,null,null,null,null,165638]
[8,2020,2600000,"tonnes","Tonnage ferroviaire additionnel généré par les projets",null,"minimum à atteindre",null,null,null,52766,56436,56436,null,null,null,null,null,null,165638]
[9,2017,250000,"tonnes","Tonnage portuaire (mode maritime) total généré par l’ensemble des projets",null,"minimum à atteindre"]
[10,2018,330000,"tonnes","Tonnage portuaire (mode maritime) total généré par l'ensemble des projets",null,"minimum à atteindre"]
[11,2020,500000,"tonnes","Tonnage portuaire (mode maritime) total généré par l'ensemble des projets",null,"minimum à atteindre"]
[12]
[13]
[14]
[15]
[16]
[17]
[18]
[19]
[20]
["tot",null,null,null,null,null,null,null,null,null,null,null,null,null,null,null,null,null,null,null,null,null,null,null,null,null,null,null,null,null,null,null,null,null,null,null,null,null,null,null,null,null,null,false]

{"sheet":"Commentaires","index":7,"n_rows":33,"n_cols":20,"rows_kept":33,"cut":false,"hidden":false,"merged":[[1,1,1,3],[3,2,3,5],[5,1,5,5],[34,14,34,15],[34,16,34,17],[29,14,29,15],[29,16,29,17],[28,16,28,17],[31,16,31,17],[32,16,32,17],[31,14,31,15],[32,14,32,15],[30,14,30,15],[30,16,30,17],[33,14,33,15],[33,16,33,17],[34,1,34,11],[24,12,24,13],[25,12,25,13],[26,12,26,13],[27,12,27,13],[29,12,29,13],[34,12,34,13],[25,1,25,11],[31,1,31,11],[32,1,32,11],[30,1,30,11],[30,12,30,13],[33,12,33,13],[33,1,33,11],[31,12,31,13],[32,12,32,13],[23,16,23,17],[23,1,23,11],[23,12,23,13],[29,1,29,11],[27,1,27,11],[28,12,28,13],[28,1,28,11],[28,14,28,15],[25,16,25,17],[26,14,26,15],[26,16,26,17],[27,14,27,15],[27,16,27,17],[24,16,24,17],[24,14,24,15],[24,1,24,11],[4,1,4,2],[26,1,26,11],[23,14,23,15],[25,14,25,15],[2,1,2,2]]}
[]
[null,{"$f":"Utilitaire!E8","v":"PLAN D'ACTION 2013-2020 SUR LES CHANGEMENTS CLIMATIQUES"},null,null,null,null,null,null,null,null,null,null,null,null,null,null,null,null,null,"COF"]
[null,{"$f":"\"Action \" & Accueil!D58","v":"Action en cours"},null,null,null,null,null,null,null,null,null,null,null,null,null,null,null,null,null,"frais"]
[null,{"$f":"Accueil!D55","v":"15.1"},{"$f":"Accueil!E55","v":"Programme visant la réduction des émissions de GES par le développement du transport intermodal (PREGTI)"},null,null,null,null,null,null,null,null,null,null,null,null,null,null,null,null,"ETC"]
[null,"Ministère porteur:",null,{"$f":"Accueil!$D$66","v":"MTMDET"},null,null,null,null,null,null,null,null,null,null,null,null,null,null,null,"détail des projets"]
[null,"Commentaires",null,null,null,null,null,null,null,null,null,null,null,null,null,null,null,null,null,"détail des projets (GES)"]
[null,null,null,null,null,null,null,null,null,null,null,null,null,null,null,null,null,null,null,"bilan GES"]
[null,null,null,null,null,null,null,null,null,null,null,null,null,null,null,null,null,null,null,"Indicateurs"]
[null,null,null,null,null,null,null,null,null,null,null,null,null,null,null,null,null,null,null,"Toutes-Autre"]
[]
[]
[null,null,null,null,null,null,null,null,null,null,null,null,null,null,null,null,null,null,null,"2013-2014"]
[null,null,null,null,null,null,null,null,null,null,null,null,null,null,null,null,null,null,null,"2014-2015"]
[null,null,null,null,null,null,null,null,null,null,null,null,null,null,null,null,null,null,null,"2015-2016"]
[null,null,null,null,null,null,null,null,null,null,null,null,null,null,null,null,null,null,null,"2016-2017"]
[null,null,null,null,null,null,null,null,null,null,null,null,null,null,null,null,null,null,null,"2017-2018"]
[]
[]
[]
[]
[]
[]
[null,null,null,null,null,null,null,null,null,null,null,null,null,null,null,null,null,null,null,"2018-2019"]
[null,"COMMENTAIRES ",null,null,null,null,null,null,null,null,null,null,"Section concernée",null,"Année",null,"Exercice",null,null,"2019-2020"]
[null,null,null,null,null,null,null,null,null,null,null,null,null,null,null,null,null,null,null,"2020-2021"]
[null,"Seulement 2 projets générant du tonnage portuaire supplémentaire ont été acceptés, mais les rapports de vérifications ne sont pas encore déposés.",null,null,null,null,null,null,null,null,null,null,"Indicateurs",null,null,null,null,null,null,"2021-2022"]
[null,"Certaines dates de derniers paiements ne sont pas indiquées car le projet a été annulé",null,null,null,null,null,null,null,null,null,null,"détail des projets",null,null,null,null,null,null,"2022-2023"]
[null,null,null,null,null,null,null,null,null,null,null,null,null,null,null,null,null,null,null,"2023-2024"]
[]
[]
[]
[null,null,null,null,null,null,null,null,null,null,null,null,null,null,null,null,null,null,null,"juin"]
[null,null,null,null,null,null,null,null,null,null,null,null,null,null,null,null,null,null,null,"décembre"]